[Event "ESP-ch Rapid 2018"]
[Site "Linares"]
[Date "2018.08.19"]
[Round "9"]
[White "Camacho Collados, Marcos"]
[Black "Collado Barbas, Laura"]
[Result "1-0"]
[ECO "D02"]
[WhiteElo "2393"]
[BlackElo "2095"]
[Annotator "NA"]
[PlyCount "73"]
[EventDate "2018.08.19"]
[EventType "team-tourn"]
[EventCountry "ESP"]
[SourceTitle "playchess.com"]
[Source "ChessBase"]
[SourceQuality "1"]
[TimeControl "900+5"]

1. d4 {[%emt 0:00:00]} d5 {[%emt 0:00:00]} 2. Nf3 {[%emt 0:00:00]} c6 {[%emt 0:00:00]} 3. c3 {[%emt 0:00:04]} Bf5 {[%emt 0:00:13]} 4. Bg5 {[%emt 0:01:44]} Nd7 {[%emt 0:00:17]} 5. e3 {[%emt 0:00:03]} Qb6 {[%emt 0:00:17]} 6. Qb3 {[%emt 0:00:25]} Qxb3 {[%emt 0:00:31]} 7. axb3 {[%emt 0:00:01]} a6 {[%emt 0:00:30]} 8. Nbd2 {[%emt 0:00:03]} h6 {[%emt 0:00:11]} 9. Bf4 {[%emt 0:00:04]} Ngf6 {[%emt 0:00:32]} 10. h3 {[%emt 0:00:02]} e6 {[%emt 0:00:44]} 11. Be2 {[%emt 0:00:05]} Be7 {[%emt 0:00:07]} 12. O-O {[%emt 0:00:03]} c5 {[%emt 0:01:52]} 13. Rfe1 {[%emt 0:02:46]} O-O {[%emt 0:00:30]} 14. Bf1 {[%emt 0:00:13]} cxd4 {[%emt 0:00:55]} 15. exd4 {[%emt 0:00:12]} Ne4 {[%emt 0:01:28]} 16. Nxe4 {[%emt 0:00:27]} Bxe4 {[%emt 0:00:03]} 17. Nd2 {[%emt 0:00:04]} Bg6 {[%emt 0:00:07]} 18. b4 {[%emt 0:00:15]} Rfc8 {[%emt 0:01:09]} 19. Nb3 {[%emt 0:00:22]} Bd8 {[%emt 0:01:59]} 20. Ra2 {[%emt 0:00:40]} Bc2 {[%emt 0:02:07]} 21. Na1 {[%emt 0:02:33]} Bf5 {[%emt 0:00:11]} 22. Rc1 {[%emt 0:00:21]} f6 {[%emt 0:00:50]} 23. Re1 {[%emt 0:00:08]} Kf7 {[%emt 0:00:04]} 24. Nb3 {[%emt 0:00:26]} Bc2 {[%emt 0:00:05]} 25. Nc5 {[%emt 0:00:32]} Nxc5 {[%emt 0:00:01]} 26. bxc5 {[%emt 0:00:02]} a5 {[%emt 0:01:43]} 27. Bb5 {[%emt 0:00:20]} Bb3 {[%emt 0:00:09]} 28. Ra3 {[%emt 0:00:03]} Bc4 {[%emt 0:00:04]} 29. Bd7 {[%emt 0:00:03]} Rc6 {[%emt 0:00:25]} 30. Bd6 {[%emt 0:00:56]} e5 {[%emt 0:00:18]} 31. b3 {[%emt 0:00:30]} Bd3 {[%emt 0:00:05]} 32. dxe5 {[%emt 0:00:11]} fxe5 {[%emt 0:00:02]} 33. Rxe5 {[%emt 0:00:15]} Rca6 {[%emt 0:00:07]} 34. Be6+ {[%emt 0:00:23]} Kf6 {[%emt 0:00:03]} 35. Rxd5 {[%emt 0:01:31]} Be4 {[%emt 0:00:05]} 36. Rd4 {[%emt 0:00:05]} Bxg2 {[%emt 0:00:07]} 37. Bc4 {[%emt 0:00:26]} 1-0

[Event "ESP-ch Rapid 2018"]
[Site "Linares"]
[Date "2018.08.19"]
[Round "9"]
[White "Suarez Uriel, Adrian"]
[Black "Perez Candelario, Manuel"]
[Result "0-1"]
[ECO "C50"]
[WhiteElo "2391"]
[BlackElo "2611"]
[Annotator "ChessBase"]
[PlyCount "150"]
[EventDate "2018.08.19"]
[EventType "team-tourn"]
[EventCountry "ESP"]
[SourceTitle "playchess.com"]
[Source "ChessBase"]
[SourceQuality "1"]
[TimeControl "900+5"]

1. e4 {[%emt 0:00:00]} e5 {[%emt 0:00:00]} 2. Nf3 {[%emt 0:00:00]} Nc6 {[%emt 0:00:00]} 3. Bc4 {[%emt 0:00:00]} Nf6 {[%emt 0:00:00]} 4. d3 {[%emt 0:00:00]} Bc5 {[%emt 0:00:06]} 5. O-O {[%emt 0:00:03]} O-O {[%emt 0:00:30]} 6. h3 {[%emt 0:00:01]} a6 {[%emt 0:00:12]} 7. c3 {[%emt 0:00:08]} d6 {[%emt 0:00:11]} 8. Bb3 {[%emt 0:00:06]} Ba7 {[%emt 0:00:16]} 9. Re1 {[%emt 0:00:02]} h6 {[%emt 0:00:09]} 10. Nbd2 {[%emt 0:00:03]} Be6 {[%emt 0:00:04]} 11. Bc2 {[%emt 0:00:21]} Re8 {[%emt 0:00:04]} 12. Nf1 {[%emt 0:00:03]} d5 {[%emt 0:00:26]} 13. exd5 {[%emt 0:00:17]} Bxd5 {[%emt 0:00:08]} 14. Be3 {[%emt 0:00:08]} Bxe3 {[%emt 0:00:38]} 15. Nxe3 {[%emt 0:00:08]} Be6 {[%emt 0:00:06]} 16. Qe2 {[%emt 0:00:12]} Nd5 {[%emt 0:00:42]} 17. Nxd5 {[%emt 0:00:43]} Bxd5 {[%emt 0:00:02]} 18. Qe3 {[%emt 0:00:04]} Qf6 {[%emt 0:00:33]} 19. Nh2 {[%emt 0:00:34]} Rad8 {[%emt 0:00:18]} 20. Rad1 {[%emt 0:00:08]} Qg5 {[%emt 0:00:45]} 21. Qxg5 {[%emt 0:00:45]} hxg5 {[%emt 0:00:01]} 22. Ng4 {[%emt 0:00:08]} f6 {[%emt 0:00:14]} 23. Kf1 {[%emt 0:01:53]} Kf8 {[%emt 0:00:09]} 24. a3 {[%emt 0:01:08]} Bf7 {[%emt 0:00:16]} 25. f3 {[%emt 0:00:57]} Bg6 {[%emt 0:00:15]} 26. Nf2 {[%emt 0:00:01]} Ne7 {[%emt 0:00:08]} 27. Ne4 {[%emt 0:00:42]} b6 {[%emt 0:01:31]} 28. Ba4 {[%emt 0:02:11]} c6 {[%emt 0:00:02]} 29. Kf2 {[%emt 0:00:55]} Rd7 {[%emt 0:00:28]} 30. Rd2 {[%emt 0:01:09]} Red8 {[%emt 0:01:36]} 31. Red1 {[%emt 0:00:01]} Bf7 {[%emt 0:01:34]} 32. b4 {[%emt 0:01:10]} Be6 {[%emt 0:00:54]} 33. Ke2 {[%emt 0:01:41]} Kf7 {[%emt 0:00:30]} 34. c4 {[%emt 0:00:47]} Nf5 {[%emt 0:00:17]} 35. c5 {[%emt 0:00:01]} b5 {[%emt 0:00:03]} 36. Bc2 {[%emt 0:00:07]} Nd4+ {[%emt 0:00:11]} 37. Ke3 {[%emt 0:00:07]} Nxc2+ {[%emt 0:00:22]} 38. Rxc2 {[%emt 0:00:05]} Bb3 {[%emt 0:00:05]} 39. Rcd2 {[%emt 0:00:01]} Bxd1 {[%emt 0:00:09]} 40. Rxd1 {[%emt 0:00:01]} Ke6 {[%emt 0:00:09]} 41. Nd6 {[%emt 0:00:05]} Rxd6 {[%emt 0:00:27]} 42. cxd6 {[%emt 0:00:01]} Rxd6 {[%emt 0:00:02]} 43. Rc1 {[%emt 0:00:04]} Kd7 {[%emt 0:00:04]} 44. Kd2 {[%emt 0:01:03]} Rd5 {[%emt 0:00:29]} 45. Kc3 {[%emt 0:00:18]} c5 {[%emt 0:00:22]} 46. Re1 {[%emt 0:00:00]} Kc6 {[%emt 0:00:17]} 47. Rh1 {[%emt 0:00:13]} Rd4 {[%emt 0:00:04]} 48. g3 {[%emt 0:00:14]} Kb6 {[%emt 0:00:14]} 49. Rh2 {[%emt 0:00:02]} a5 {[%emt 0:00:06]} 50. bxc5+ {[%emt 0:00:03]} Kxc5 {[%emt 0:00:01]} 51. Rc2 {[%emt 0:00:06]} Ra4 {[%emt 0:00:52]} 52. Kb3+ {[%emt 0:00:03]} Kd4 {[%emt 0:00:19]} 53. Rc7 {[%emt 0:00:01]} Kxd3 {[%emt 0:00:28]} 54. Rxg7 {[%emt 0:00:01]} Ke3 {[%emt 0:00:29]} 55. Rf7 {[%emt 0:00:03]} Kxf3 {[%emt 0:00:06]} 56. Rxf6+ {[%emt 0:00:05]} Kxg3 {[%emt 0:00:08]} 57. Rf5 {[%emt 0:00:00]} Re4 {[%emt 0:00:22]} 58. Rxg5+ {[%emt 0:00:01]} Kf4 {[%emt 0:00:13]} 59. Rg4+ {[%emt 0:00:07]} Kf5 {[%emt 0:00:09]} 60. Rg3 {[%emt 0:00:03]} Rd4 {[%emt 0:00:12]} 61. Kc3 {[%emt 0:00:02]} Kf4 {[%emt 0:00:18]} 62. Rg4+ {[%emt 0:00:01]} Ke3 {[%emt 0:00:01]} 63. Rg5 {[%emt 0:00:03]} Rc4+ {[%emt 0:00:04]} 64. Kb2 {[%emt 0:00:03]} Kf4 {[%emt 0:00:09]} 65. Rg4+ {[%emt 0:00:01]} Kf3 {[%emt 0:00:02]} 66. Rg5 {[%emt 0:00:01]} Kf4 {[%emt 0:00:08]} 67. Rg4+ {[%emt 0:00:01]} Ke3 {[%emt 0:00:02]} 68. Rg5 {[%emt 0:00:22]} Kd4 {[%emt 0:00:08]} 69. h4 {[%emt 0:00:00]} Kd5 {[%emt 0:00:04]} 70. Rg2 {[%emt 0:00:06]} Rxh4 {[%emt 0:00:03]} 71. Rd2+ {[%emt 0:00:03]} Rd4 {[%emt 0:00:02]} 72. Re2 {[%emt 0:00:01]} Rd3 {[%emt 0:00:02]} 73. Rh2 {[%emt 0:00:03]} a4 {[%emt 0:00:03]} 74. Rh4 {[%emt 0:00:05]} Rb3+ {[%emt 0:00:02]} 75. Ka2 {[%emt 0:00:01]} e4 {[%emt 0:00:02]} 0-1

[Event "ESP-ch Rapid 2018"]
[Site "Linares"]
[Date "2018.08.19"]
[Round "9"]
[White "Vega Gutierrez, Sabrina"]
[Black "Fernandez De Bobadilla, Gabriel"]
[Result "1-0"]
[ECO "B53"]
[WhiteElo "2390"]
[BlackElo "2175"]
[Annotator "NA"]
[PlyCount "85"]
[EventDate "2018.08.19"]
[EventType "team-tourn"]
[EventCountry "ESP"]
[SourceTitle "playchess.com"]
[Source "ChessBase"]
[SourceQuality "1"]
[TimeControl "900+5"]

1. e4 {[%emt 0:00:00]} c5 {[%emt 0:00:00]} 2. Nf3 {[%emt 0:00:09]} d6 {[%emt 0:00:00]} 3. d4 {[%emt 0:00:02]} cxd4 {[%emt 0:00:00]} 4. Qxd4 {[%emt 0:00:03]} Bd7 {[%emt 0:01:00]} 5. Be2 {[%emt 0:00:14]} Nc6 {[%emt 0:00:02]} 6. Qe3 {[%emt 0:00:04]} Nf6 {[%emt 0:00:20]} 7. h3 {[%emt 0:00:06]} e6 {[%emt 0:00:16]} 8. c4 {[%emt 0:01:08]} Be7 {[%emt 0:01:51]} 9. O-O {[%emt 0:00:03]} Qc7 {[%emt 0:01:03]} 10. Nc3 {[%emt 0:00:04]} a6 {[%emt 0:00:05]} 11. b3 {[%emt 0:00:25]} h6 {[%emt 0:01:11]} 12. Bb2 {[%emt 0:00:03]} Ne5 {[%emt 0:00:11]} 13. Nd4 {[%emt 0:00:21]} g5 {[%emt 0:00:12]} 14. Rac1 {[%emt 0:01:44]} Ng6 {[%emt 0:01:34]} 15. Rfe1 {[%emt 0:00:25]} h5 {[%emt 0:00:49]} 16. Bf1 {[%emt 0:01:06]} g4 {[%emt 0:00:30]} 17. b4 {[%emt 0:02:30]} b6 {[%emt 0:02:03]} 18. Nde2 {[%emt 0:02:28]} Qb7 {[%emt 0:00:57]} 19. Nf4 {[%emt 0:01:10]} Ne5 {[%emt 0:00:11]} 20. Rc2 {[%emt 0:01:29]} Rc8 {[%emt 0:00:02]} 21. Ncd5 {[%emt 0:01:40]} exd5 {[%emt 0:01:07]} 22. exd5 {[%emt 0:00:02]} Bf5 {[%emt 0:01:25]} 23. Bxe5 {[%emt 0:00:03]} Kf8 {[%emt 0:01:11]} 24. Bxf6 {[%emt 0:00:22]} Bxf6 {[%emt 0:00:04]} 25. Bd3 {[%emt 0:00:06]} Qd7 {[%emt 0:00:11]} 26. hxg4 {[%emt 0:00:57]} hxg4 {[%emt 0:00:05]} 27. Bxf5 {[%emt 0:00:23]} Qxf5 {[%emt 0:00:02]} 28. Qe4 {[%emt 0:00:04]} Qxe4 {[%emt 0:00:39]} 29. Rxe4 {[%emt 0:00:02]} Kg7 {[%emt 0:00:06]} 30. g3 {[%emt 0:00:02]} Be5 {[%emt 0:00:11]} 31. Nd3 {[%emt 0:00:04]} f5 {[%emt 0:00:07]} 32. Re1 {[%emt 0:00:05]} Rhe8 {[%emt 0:00:02]} 33. c5 {[%emt 0:00:02]} bxc5 {[%emt 0:00:03]} 34. bxc5 {[%emt 0:00:02]} Kf6 {[%emt 0:00:04]} 35. c6 {[%emt 0:00:01]} Bd4 {[%emt 0:00:13]} 36. Rce2 {[%emt 0:00:03]} Re5 {[%emt 0:00:06]} 37. Nxe5 {[%emt 0:00:10]} dxe5 {[%emt 0:00:02]} 38. Rb1 {[%emt 0:00:10]} Ke7 {[%emt 0:00:04]} 39. Rb7+ {[%emt 0:00:03]} Kd6 {[%emt 0:00:01]} 40. Rd7+ {[%emt 0:00:02]} Kc5 {[%emt 0:00:03]} 41. Rc2+ {[%emt 0:00:02]} Kb6 {[%emt 0:00:06]} 42. Rb7+ {[%emt 0:00:02]} Ka5 {[%emt 0:00:02]} 43. d6 {[%emt 0:00:05]} 1-0

[Event "ESP-ch Rapid 2018"]
[Site "Linares"]
[Date "2018.08.19"]
[Round "9"]
[White "Campos Gambuti, Luis Maria"]
[Black "Vinuela Diaz, Saul"]
[Result "0-1"]
[ECO "D01"]
[WhiteElo "2382"]
[BlackElo "2216"]
[Annotator "NA"]
[PlyCount "48"]
[EventDate "2018.08.19"]
[EventType "team-tourn"]
[EventCountry "ESP"]
[SourceTitle "playchess.com"]
[Source "ChessBase"]
[SourceQuality "1"]
[TimeControl "900+5"]

1. d4 {[%emt 0:00:00]} Nf6 {[%emt 0:00:00]} 2. Nc3 {[%emt 0:00:00]} d5 {[%emt 0:00:00]} 3. Bg5 {[%emt 0:00:00]} Nbd7 {[%emt 0:00:04]} 4. Qd3 {[%emt 0:00:01]} h6 {[%emt 0:00:08]} 5. Bh4 {[%emt 0:00:02]} e6 {[%emt 0:00:52]} 6. e4 {[%emt 0:00:09]} dxe4 {[%emt 0:00:01]} 7. Nxe4 {[%emt 0:00:02]} Be7 {[%emt 0:00:01]} 8. Nxf6+ {[%emt 0:00:20]} Nxf6 {[%emt 0:00:02]} 9. Nf3 {[%emt 0:00:02]} O-O {[%emt 0:00:08]} 10. O-O-O {[%emt 0:00:03]} c5 {[%emt 0:00:28]} 11. Ne5 {[%emt 0:01:01]} Qa5 {[%emt 0:00:31]} 12. Qb5 {[%emt 0:00:22]} Qxa2 {[%emt 0:00:18]} 13. Bc4 {[%emt 0:00:07]} a6 {[%emt 0:01:23]} 14. Qb6 {[%emt 0:00:51]} Qa1+ {[%emt 0:00:20]} 15. Kd2 {[%emt 0:00:09]} Qa4 {[%emt 0:00:02]} 16. Ra1 {[%emt 0:03:05]} Qe8 {[%emt 0:00:33]} 17. Ke2 {[%emt 0:00:09]} cxd4 {[%emt 0:01:37]} 18. Rhd1 {[%emt 0:00:22]} Nd7 {[%emt 0:01:21]} 19. Nxd7 {[%emt 0:00:30]} Bxd7 {[%emt 0:00:02]} 20. Bxe7 {[%emt 0:00:37]} Qxe7 {[%emt 0:00:01]} 21. Qxb7 {[%emt 0:00:13]} Rab8 {[%emt 0:00:32]} 22. Qxa6 {[%emt 0:00:20]} Rxb2 {[%emt 0:00:02]} 23. Bb3 {[%emt 0:01:23]} Qb4 {[%emt 0:00:39]} 24. Qa5 {[%emt 0:00:48]} Qxb3 {[%emt 0:00:10]} 0-1

[Event "ESP-ch Rapid 2018"]
[Site "Linares"]
[Date "2018.08.19"]
[Round "9"]
[White "Domingo Nunez, Alejandro"]
[Black "Arizmendi Martinez, Julen Luis"]
[Result "1/2-1/2"]
[ECO "C00"]
[WhiteElo "2373"]
[BlackElo "2507"]
[Annotator "ChessBase"]
[PlyCount "160"]
[EventDate "2018.08.19"]
[EventType "team-tourn"]
[EventCountry "ESP"]
[SourceTitle "playchess.com"]
[Source "ChessBase"]
[SourceQuality "1"]
[TimeControl "900+5"]

1. e4 {[%emt 0:00:00]} e6 {[%emt 0:00:01]} 2. d3 {[%emt 0:01:04]} d5 {[%emt 0:00:04]} 3. Nd2 {[%emt 0:00:01]} c5 {[%emt 0:00:19]} 4. Ngf3 {[%emt 0:00:02]} Nc6 {[%emt 0:00:02]} 5. g3 {[%emt 0:00:02]} Nf6 {[%emt 0:00:04]} 6. Bg2 {[%emt 0:00:01]} g6 {[%emt 0:00:04]} 7. O-O {[%emt 0:00:04]} Bg7 {[%emt 0:00:02]} 8. exd5 {[%emt 0:00:17]} Nxd5 {[%emt 0:00:21]} 9. Ne4 {[%emt 0:00:57]} b6 {[%emt 0:01:01]} 10. Bg5 {[%emt 0:00:05]} f6 {[%emt 0:00:25]} 11. Bd2 {[%emt 0:00:01]} e5 {[%emt 0:01:45]} 12. Nc3 {[%emt 0:00:22]} Nde7 {[%emt 0:00:43]} 13. Qc1 {[%emt 0:01:48]} O-O {[%emt 0:00:26]} 14. Bh6 {[%emt 0:00:53]} Be6 {[%emt 0:00:14]} 15. Bxg7 {[%emt 0:00:42]} Kxg7 {[%emt 0:00:01]} 16. Nd2 {[%emt 0:00:01]} Rc8 {[%emt 0:00:54]} 17. f4 {[%emt 0:00:12]} exf4 {[%emt 0:00:36]} 18. Rxf4 {[%emt 0:00:01]} Nd4 {[%emt 0:00:06]} 19. Rf2 {[%emt 0:00:10]} f5 {[%emt 0:00:38]} 20. Qe1 {[%emt 0:01:07]} Nec6 {[%emt 0:00:43]} 21. Nf3 {[%emt 0:02:40]} Qf6 {[%emt 0:00:15]} 22. Qd2 {[%emt 0:00:09]} Rce8 {[%emt 0:02:06]} 23. Nxd4 {[%emt 0:01:53]} Nxd4 {[%emt 0:00:02]} 24. Nd1 {[%emt 0:00:01]} Bg8 {[%emt 0:01:29]} 25. c3 {[%emt 0:00:04]} Nc6 {[%emt 0:00:48]} 26. Ne3 {[%emt 0:00:02]} Qd6 {[%emt 0:01:21]} 27. Nc4 {[%emt 0:00:31]} Bxc4 {[%emt 0:00:36]} 28. dxc4 {[%emt 0:00:01]} Qxd2 {[%emt 0:00:07]} 29. Rxd2 {[%emt 0:00:01]} Ne5 {[%emt 0:00:02]} 30. b3 {[%emt 0:00:16]} Ng4 {[%emt 0:00:35]} 31. b4 {[%emt 0:02:31]} Re3 {[%emt 0:00:40]} 32. bxc5 {[%emt 0:00:04]} bxc5 {[%emt 0:00:01]} 33. Rd5 {[%emt 0:00:01]} Rfe8 {[%emt 0:00:25]} 34. h3 {[%emt 0:01:02]} Nf6 {[%emt 0:00:22]} 35. Rxc5 {[%emt 0:00:03]} Rxg3 {[%emt 0:00:01]} 36. Rc7+ {[%emt 0:00:04]} Kh6 {[%emt 0:00:03]} 37. Rf1 {[%emt 0:00:37]} Re2 {[%emt 0:00:32]} 38. Rf2 {[%emt 0:00:01]} Rxf2 {[%emt 0:00:07]} 39. Kxf2 {[%emt 0:00:01]} Rxc3 {[%emt 0:00:01]} 40. c5 {[%emt 0:00:16]} Kg5 {[%emt 0:00:06]} 41. c6 Kf4 {[%emt 0:00:06]} 42. Re7 {[%emt 0:00:07]} Ne4+ {[%emt 0:00:08]} 43. Bxe4 {[%emt 0:00:04]} fxe4 {[%emt 0:00:01]} 44. Rf7+ {[%emt 0:00:01]} Ke5 {[%emt 0:00:03]} 45. c7 {[%emt 0:00:09]} h5 {[%emt 0:00:05]} 46. Re7+ {[%emt 0:00:11]} Kd6 {[%emt 0:00:03]} 47. Rxe4 {[%emt 0:00:08]} Rxc7 {[%emt 0:00:05]} 48. Ra4 {[%emt 0:00:00]} Ke5 {[%emt 0:00:11]} 49. Kg3 {[%emt 0:00:10]} Kf5 {[%emt 0:00:07]} 50. Ra5+ {[%emt 0:00:00]} Kf6 {[%emt 0:00:02]} 51. Ra6+ {[%emt 0:00:01]} Kg5 {[%emt 0:00:02]} 52. Ra5+ {[%emt 0:00:00]} Kh6 {[%emt 0:00:02]} 53. Ra6 {[%emt 0:00:05]} Kg5 {[%emt 0:00:06]} 54. Ra5+ {[%emt 0:00:01]} Kf6 {[%emt 0:00:01]} 55. Ra6+ {[%emt 0:00:01]} Kf5 {[%emt 0:00:02]} 56. Ra5+ {[%emt 0:00:00]} Kf6 {[%emt 0:00:18]} 57. Ra6+ {[%emt 0:00:01]} Kg5 {[%emt 0:00:01]} 58. Ra5+ {[%emt 0:00:01]} Kh6 {[%emt 0:00:01]} 59. Ra6 {[%emt 0:00:00]} Rf7 {[%emt 0:00:05]} 60. h4 {[%emt 0:00:26]} Kg7 {[%emt 0:00:06]} 61. Kh3 {[%emt 0:00:03]} Kh7 {[%emt 0:00:11]} 62. Kg3 {[%emt 0:00:01]} Kg7 {[%emt 0:00:05]} 63. Kh3 {[%emt 0:00:00]} Kh6 {[%emt 0:00:02]} 64. Kg3 {[%emt 0:00:02]} Kg7 {[%emt 0:00:00]} 65. Kh3 {[%emt 0:00:01]} Rc7 {[%emt 0:00:01]} 66. Kg3 {[%emt 0:00:04]} Kh6 {[%emt 0:00:03]} 67. Kh3 {[%emt 0:00:02]} Kg7 {[%emt 0:00:18]} 68. Kg3 {[%emt 0:00:01]} Rf7 {[%emt 0:00:00]} 69. Kh3 {[%emt 0:00:02]} Kh7 {[%emt 0:00:02]} 70. Kg3 {[%emt 0:00:01]} Rg7 {[%emt 0:00:07]} 71. Kf4 {[%emt 0:00:20]} Kh6 {[%emt 0:00:09]} 72. Kg3 {[%emt 0:00:05]} Rb7 {[%emt 0:00:06]} 73. Kh3 {[%emt 0:00:02]} Rc7 {[%emt 0:00:05]} 74. Kg3 {[%emt 0:00:01]} Rc3+ {[%emt 0:00:03]} 75. Kg2 {[%emt 0:00:03]} Rc4 {[%emt 0:00:03]} 76. Kg3 {[%emt 0:00:01]} Rc7 {[%emt 0:00:04]} 77. Kh3 {[%emt 0:00:01]} Kg7 {[%emt 0:00:10]} 78. Kg3 {[%emt 0:00:01]} Kf7 {[%emt 0:00:02]} 79. Kh3 {[%emt 0:00:03]} Kg7 {[%emt 0:00:10]} 80. Kg3 {[%emt 0:00:01]} Rf7 {[%emt 0:00:01]} 1/2-1/2

[Event "ESP-ch Rapid 2018"]
[Site "Linares"]
[Date "2018.08.19"]
[Round "9"]
[White "Blanco Acevedo, Cristobal Jose"]
[Black "Sanjuan Garcia, Miguel"]
[Result "1-0"]
[ECO "A16"]
[WhiteElo "2336"]
[BlackElo "2115"]
[Annotator "NA"]
[PlyCount "73"]
[EventDate "2018.08.19"]
[EventType "team-tourn"]
[EventCountry "ESP"]
[SourceTitle "playchess.com"]
[Source "ChessBase"]
[SourceQuality "1"]
[TimeControl "900+5"]

1. c4 {[%emt 0:00:00]} Nf6 {[%emt 0:00:00]} 2. Nc3 {[%emt 0:00:00]} g6 {[%emt 0:00:00]} 3. g3 {[%emt 0:00:00]} Bg7 {[%emt 0:00:00]} 4. Bg2 {[%emt 0:00:01]} O-O {[%emt 0:00:02]} 5. e4 {[%emt 0:00:05]} d6 {[%emt 0:00:02]} 6. Nf3 {[%emt 0:00:02]} e5 {[%emt 0:00:08]} 7. O-O {[%emt 0:00:08]} Nc6 {[%emt 0:00:08]} 8. h3 {[%emt 0:00:04]} h6 {[%emt 0:00:17]} 9. d3 {[%emt 0:00:03]} Be6 {[%emt 0:00:02]} 10. Kh2 {[%emt 0:00:03]} Kh7 {[%emt 0:00:15]} 11. Be3 {[%emt 0:00:02]} Nd7 {[%emt 0:00:21]} 12. Ne2 {[%emt 0:00:35]} f5 {[%emt 0:00:14]} 13. exf5 {[%emt 0:00:03]} gxf5 {[%emt 0:00:05]} 14. Rc1 {[%emt 0:01:42]} Ne7 {[%emt 0:00:26]} 15. d4 {[%emt 0:00:51]} Ng6 {[%emt 0:00:34]} 16. Qc2 {[%emt 0:01:49]} Qe8 {[%emt 0:02:15]} 17. Nfg1 {[%emt 0:00:19]} e4 {[%emt 0:01:41]} 18. f3 {[%emt 0:00:53]} d5 {[%emt 0:04:22]} 19. cxd5 Bxd5 20. fxe4 {[%emt 0:00:21]} fxe4 {[%emt 0:00:26]} 21. Qxc7 {[%emt 0:00:18]} Rxf1 {[%emt 0:00:21]} 22. Bxf1 {[%emt 0:01:33]} Nb6 {[%emt 0:00:07]} 23. b3 {[%emt 0:01:32]} Qf8 {[%emt 0:01:43]} 24. Qc5 {[%emt 0:00:57]} Qf7 {[%emt 0:00:11]} 25. Bg2 {[%emt 0:00:35]} Rc8 {[%emt 0:00:21]} 26. Qa3 {[%emt 0:00:01]} Rxc1 {[%emt 0:00:13]} 27. Qxc1 {[%emt 0:00:03]} Qd7 {[%emt 0:00:32]} 28. Qf1 {[%emt 0:00:37]} Bf8 {[%emt 0:00:13]} 29. Nc3 {[%emt 0:00:05]} Bb4 {[%emt 0:01:00]} 30. Nxe4 {[%emt 0:00:09]} Bxe4 {[%emt 0:00:30]} 31. Bxe4 {[%emt 0:00:02]} Nd5 {[%emt 0:00:05]} 32. Bc1 {[%emt 0:01:24]} Kg7 {[%emt 0:00:01]} 33. Qd3 {[%emt 0:00:17]} Nge7 {[%emt 0:00:12]} 34. Nf3 {[%emt 0:00:12]} Nf6 {[%emt 0:00:04]} 35. Bf4 {[%emt 0:00:20]} Nc6 {[%emt 0:00:26]} 36. Be5 {[%emt 0:00:44]} Nxe5 {[%emt 0:00:07]} 37. dxe5 {[%emt 0:00:08]} 1-0

[Event "ESP-ch Rapid 2018"]
[Site "Linares"]
[Date "2018.08.19"]
[Round "9"]
[White "Gavilan Diaz, Mario"]
[Black "Fernandez Torre, Ivan"]
[Result "1-0"]
[ECO "E98"]
[WhiteElo "2334"]
[BlackElo "2128"]
[Annotator "NA"]
[PlyCount "87"]
[EventDate "2018.08.19"]
[EventType "team-tourn"]
[EventCountry "ESP"]
[SourceTitle "playchess.com"]
[Source "ChessBase"]
[SourceQuality "1"]
[TimeControl "900+5"]

1. d4 {[%emt 0:00:00]} Nf6 {[%emt 0:00:00]} 2. c4 {[%emt 0:00:00]} g6 {[%emt 0:00:00]} 3. Nc3 {[%emt 0:00:00]} Bg7 {[%emt 0:00:00]} 4. e4 {[%emt 0:00:01]} d6 {[%emt 0:00:00]} 5. Nf3 {[%emt 0:00:01]} O-O {[%emt 0:00:03]} 6. Be2 {[%emt 0:00:01]} e5 {[%emt 0:00:01]} 7. O-O {[%emt 0:00:03]} Nc6 {[%emt 0:00:02]} 8. d5 {[%emt 0:00:01]} Ne7 {[%emt 0:00:01]} 9. Ne1 {[%emt 0:00:02]} Ne8 {[%emt 0:00:04]} 10. Be3 {[%emt 0:00:05]} f5 {[%emt 0:00:02]} 11. f3 {[%emt 0:00:01]} Nf6 {[%emt 0:00:21]} 12. c5 {[%emt 0:00:13]} f4 {[%emt 0:00:16]} 13. Bf2 {[%emt 0:00:01]} g5 {[%emt 0:00:02]} 14. Rc1 {[%emt 0:00:12]} Ng6 {[%emt 0:00:03]} 15. cxd6 {[%emt 0:00:18]} cxd6 {[%emt 0:00:02]} 16. Nb5 {[%emt 0:00:02]} Rf7 {[%emt 0:00:01]} 17. Nxa7 {[%emt 0:00:41]} Bd7 {[%emt 0:00:42]} 18. Qb3 {[%emt 0:00:37]} g4 {[%emt 0:00:28]} 19. Bb6 {[%emt 0:00:19]} Qe7 {[%emt 0:00:45]} 20. Rc7 {[%emt 0:00:59]} Ne8 {[%emt 0:00:21]} 21. Rxb7 {[%emt 0:00:30]} g3 {[%emt 0:00:02]} 22. h3 {[%emt 0:01:56]} Qh4 {[%emt 0:00:14]} 23. Rxd7 {[%emt 0:00:48]} Rxd7 {[%emt 0:00:02]} 24. Nc6 {[%emt 0:00:13]} Nh8 {[%emt 0:00:48]} 25. a4 {[%emt 0:02:15]} Nf7 {[%emt 0:00:06]} 26. Bb5 {[%emt 0:00:01]} Rb7 {[%emt 0:00:59]} 27. a5 {[%emt 0:00:40]} Ng5 {[%emt 0:00:32]} 28. Qc2 {[%emt 0:00:07]} Bf8 {[%emt 0:00:49]} 29. Nd3 {[%emt 0:00:25]} Nc7 {[%emt 0:00:32]} 30. Bc4 {[%emt 0:00:09]} Na6 {[%emt 0:00:47]} 31. b4 {[%emt 0:00:08]} Nxh3+ {[%emt 0:00:05]} 32. gxh3 {[%emt 0:00:04]} g2 {[%emt 0:00:01]} 33. Rf2 {[%emt 0:00:42]} Rg7 {[%emt 0:00:48]} 34. Rxg2 {[%emt 0:00:10]} Rg3 {[%emt 0:00:01]} 35. Rxg3+ {[%emt 0:00:52]} fxg3 {[%emt 0:00:04]} 36. Kg2 {[%emt 0:00:15]} Bh6 {[%emt 0:00:20]} 37. b5 {[%emt 0:01:17]} Nc5 {[%emt 0:00:35]} 38. Nxc5 {[%emt 0:00:14]} dxc5 {[%emt 0:00:08]} 39. d6+ {[%emt 0:00:05]} Kh8 {[%emt 0:00:03]} 40. Nxe5 {[%emt 0:00:09]} Be3 {[%emt 0:00:38]} 41. d7 {[%emt 0:01:09]} Qf6 {[%emt 0:00:13]} 42. Nf7+ {[%emt 0:01:11]} Kg7 {[%emt 0:00:01]} 43. e5 {[%emt 0:00:18]} Qf4 {[%emt 0:00:45]} 44. Qe4 {[%emt 0:00:08]} 1-0